Cogmind - Beta 17.1 *** ADVENTURER MODE // 2026.09.18 @ 07:37:49 Player: F-forge Result: Destroyed by DR-K2N(E) with Overtuned Barrage Gun Performance ------------- Evolutions (2) 1000 Regions Visited (6) 1200 Robots Destroyed (161) 805 Value Destroyed (3728) 3728 Prototype IDs (8) 160 Alien Tech Used (0) 0 Bonus (1036) 1036 TOTAL SCORE: 7929 Bonus ------- Follower Combat Kills 736 Registered with UFD 300 Cogmind --------- Core Integrity 0/550 Matter 300/300 Energy 275/280 System Corruption 0% Temperature Cool (0) Movement Rolling (110) Ox1 Location -8/Scraptown Parts ------- > --- POWER (1) -------- Cooled Ion Engine > --- PROPULSION (3) --- Armored Wheel Armored Huge Wheel > --- UTILITY (5) ------ High-capacity Storage Unit Improved Signal Interpreter Improved Terrain Scanner Advanced Terrain Scan Processor Advanced Targeting Computer > --- WEAPON (2) ------- Scythe > --- INVENTORY (20) --- Armored Huge Wheel Improved Heat Sink Large Storage Unit Trap Scanner Advanced Visual Processing Unit Improved Sensor Array Hardened Light Armor Plating Hacking Suite A0-MCA's Component Scanner Mapping Drone Bay (3/3) Improved Assault Rifle Flak Cannon Rocket Launcher Remote Datajack Plasma Cutter Peak State ------------ > --- POWER ------------ Cooled Ion Engine > --- PROPULSION ------- Armored Wheel Armored Huge Wheel > --- UTILITY ---------- Large Storage Unit Improved Signal Interpreter Improved Terrain Scanner Advanced Terrain Scan Processor Advanced Targeting Computer > --- WEAPON ----------- Junk Cannon > --- INVENTORY -------- Armored Huge Wheel Improved Heat Sink High-capacity Storage Unit Trap Scanner Advanced Visual Processing Unit Improved Sensor Array Hardened Light Armor Plating Hacking Suite A0-MCA's Component Scanner Heavy Laser Improved Assault Rifle Flak Cannon Rocket Launcher Remote Datajack [Rating: 44] Favorites ----------- Power Light Ion Engine Engine Light Ion Engine Power Core Nuclear Core Propulsion Light Treads Treads Light Treads Wheel Armored Wheel Utility Small Storage Unit Device Seismic Detector Storage Small Storage Unit Processor Advanced Terrain Scan Processor Protection Hardened Medium Armor Plating Weapon EM Pulse Gun Energy Gun EM Pulse Gun Ballistic Gun Heavy Assault Rifle Ballistic Cannon Flak Cannon Launcher Rocket Launcher Special Weapon Mining Laser Slashing Weapon Scythe Special Melee Weapon Datajack Build | -11 -10 -9 -8 -8 -8 -8 ------- Run | Yrd Mat Mat Mat Sto Rec Scr Slots Evolved 4 | . . 2 2 . . . Power . | . . . . . . . Propulsion 1 | . . 1 . . . . Utility 3 | . . 1 2 . . . Weapon . | . . . . . . . Parts Attached 84 | 18 11 17 25 9 1 3 Power 14 | 1 2 2 7 2 . . Engine 10 | 1 1 2 4 2 . . Core 4 | . 1 . 3 . . . Reactor . | . . . . . . . Propulsion 24 | 9 4 7 3 1 . . Treads 4 | 2 2 . . . . . Leg . | . . . . . . . Wheel 20 | 7 2 7 3 1 . . Hover . | . . . . . . . Flight . | . . . . . . . Utility 21 | 4 4 2 8 1 . 2 Device 7 | 2 . 2 2 1 . . Storage 6 | 2 1 . 1 . . 2 Processor 6 | . 2 . 4 . . . Hackware . | . . . . . . . Protection 2 | . 1 . 1 . . . Artifact . | . . . . . . . Weapon 25 | 4 1 6 7 5 1 1 Energy Gun 8 | 2 . 3 2 1 . . Energy Cannon . | . . . . . . . Ballistic Gun 7 | 1 . 3 2 1 . . Ballistic Cannon 3 | . . . 1 2 . . Launcher 1 | . . . 1 . . . Special Weapon 4 | 1 . . . 1 1 1 Impact Weapon . | . . . . . . . Slashing Weapon 1 | . . . 1 . . . Piercing Weapon . | . . . . . . . Special Melee Weapon 1 | . 1 . . . . . Unidentified Prototypes 4 | . . . 1 2 . 1 Parts Lost 7 | . 1 2 2 1 . 1 Power 1 | . 1 . . . . . Propulsion 1 | . . 1 . . . . Utility 1 | . . . . 1 . . Weapon 4 | . . 1 2 . . 1 Highest Loss Streak 1 | . 1 1 1 1 . 1 To Critical Strikes 1 | . . . . . . 1 Average Backups 10 | 7 11 14 14 13 14 14 Power . | . . . . . . . Propulsion 3 | 4 4 1 . . 1 1 Utility 3 | . 4 7 6 7 8 8 Weapon 2 | 1 1 4 3 3 3 3 Tool/Special . | . . . . . . . Unused Backups 25 | 2 4 6 5 1 . 7 Power 1 | . 1 . . . . . Propulsion 4 | 2 2 . . . . . Utility 13 | . . 4 2 . . 7 Weapon 6 | . 1 2 3 . . . Tool/Special 1 | . . . . 1 . . Average Slot Usage (%) 92 | . 99 99 90 89 90 89 Engine 7 | . 5 10 7 4 9 9 Core 1 | . 8 . 1 4 . . Wheel 20 | . 21 32 18 17 18 18 Device 9 | . 5 10 12 8 9 9 Storage 9 | . 14 11 9 9 9 9 Processor 21 | . 7 11 23 27 27 27 Energy Gun 5 | . 16 11 4 2 . 3 Ballistic Gun 5 | . 9 10 8 2 . . Ballistic Cannon 2 | . . . 2 8 7 . Special Weapon 1 | . . . . . 2 5 Slashing Weapon 3 | . . . 1 5 7 8 Peak Build Rating 44 | 8 10 20 36 40 38 44 Average Rating 18 | 6 9 17 34 37 36 36 On Entrance 20 | . 8 9 20 36 37 36 Avg Prop Armor Cover (%) . | . . . . . . . Naked Turns . | . . . . . . . Heaviest Build 55 | 16 28 34 44 43 39 55 Greatest Support 44 | 40 40 44 40 40 40 40 Greatest Overweight (x) 1 | . . . 1 1 . 1 Average Overweight (x) . | . . . . . . . Largest Inventory Capacity 20 | 8 15 15 15 15 15 20 Average Capacity 11 | 7 12 15 15 15 15 15 Most Carried 16 | 8 15 15 15 15 15 16 Average Carried 11 | 7 11 14 14 14 15 15 Final Capacity 20 | 8 15 15 15 15 15 20 Final Carried 16 | 8 14 15 15 15 15 16 Class Distribution -------------------- 74% | Mutant 19% | Commander-Mutant 6% | Skirmisher Dominant Class ---------------- Mutant | -10/Materials Mutant | -9/Materials Mutant | -8/Materials Mutant | -8/Storage Commander-Mutant | -8/Recycling Commander-Mutant | -8/Scraptown Resources | -11 -10 -9 -8 -8 -8 -8 ----------- Run | Yrd Mat Mat Mat Sto Rec Scr Matter Collected 3946 | 479 379 579 1203 835 401 70 Remotely . | . . . . . . . Salvage Created 6046 | 328 631 1335 1747 872 1064 69 Parts 370 | 35 34 95 109 51 45 1 Haulers Intercepted 13 | . 2 6 4 1 . . Recyclers Shooed 5 | . . . 1 1 3 . Parts Field Recycled . | . . . . . . . Retrieved Matter . | . . . . . . . Parts Self-Destructed . | . . . . . . . Prevented . | . . . . . . . Parts Restored . | . . . . . . . Kills | -11 -10 -9 -8 -8 -8 -8 ------- Run | Yrd Mat Mat Mat Sto Rec Scr Combat Hostiles Destroyed 91 | . 12 17 36 21 3 2 Melee 4 | . . . 2 . . 2 Guns 55 | . 12 17 20 6 . . Cannons 19 | . . . 5 11 3 . AOE 13 | . . . 9 4 . . Classes Destroyed 17 | 3 3 5 1 1 2 2 Worker 15 | 4 . 5 5 1 . . Builder 10 | . . 4 5 1 . . Tunneler 10 | 9 . 1 . . . . Hauler 13 | . 2 6 4 1 . . Recycler 4 | 1 . . 1 1 1 . Mechanic 2 | . . . . 2 . . Operator 2 | . . 1 1 . . . Watcher 12 | . 1 5 4 2 . . Swarmer 27 | . . 4 14 7 2 . Grunt 35 | . 12 5 8 10 . . Brawler 1 | . . 1 . . . . Duelist 1 | . . . . . 1 . Protector 1 | . . . . . 1 . Sentry 25 | . . 7 13 4 1 . Hunter 1 | . . . 1 . . . Ranger 1 | . . . . . . 1 Guru 1 | . . . . . . 1 Best Kill Streak 10 | 4 3 6 4 10 3 2 Combat Bots Only 7 | . 3 6 4 7 2 2 Max Kills in Single Turn 3 | 2 1 1 3 2 2 1 Gunslinging . | . . . . . . . Exploded 3 | . . . 3 2 . . Melee 1 | . . . 1 . . 1 Uniques/NPCs Destroyed . | . . . . . . . Combat | -11 -10 -9 -8 -8 -8 -8 -------- Run | Yrd Mat Mat Mat Sto Rec Scr Hostile Shots Fired 501 | . 62 94 212 83 . 50 Missed 131 | . 15 34 55 22 . 5 Hits 370 | . 47 60 157 61 . 45 Melee 7 | . . . . . . 7 Projectile 363 | . 47 60 157 61 . 38 AOE 1 | . 1 . . . . . Critical Strikes 18 | . 1 1 8 2 . 6 Damage Taken 3716 | . 542 531 1645 677 34 287 Core 842 | . 207 85 317 125 12 96 Absorbed by Shields 9 | . . . . . 9 . Ignored by Resistances 1114 | . 162 163 476 199 12 102 Regen/Repaired (Parts) 453 | . . 45 112 296 . . Core Remaining (%) 65 | 100 17 78 . . . . Volleys Fired 467 | 39 65 103 158 47 55 . Largest 2 | 2 2 2 2 2 1 . Hottest 163 | 60 140 156 163 109 37 . Shots Fired 790 | 78 119 184 270 83 56 . Gun 637 | 78 118 174 226 41 . . Cannon 72 | . . . 24 36 12 . Launcher 12 | . . . 6 6 . . Special 69 | . 1 10 14 . 44 . Kinetic 414 | 39 54 91 153 65 12 . Thermal 299 | 39 60 93 95 12 . . Explosive 12 | . . . 6 6 . . Electromagnetic 21 | . 5 . 16 . . . Robot Hit Streak 47 | 12 47 19 47 27 34 . Robot Miss Streak 5 | 2 2 2 5 3 5 . Penetration Max . | . . . . . . . Secondary Targets 4 | . . 2 2 . . . Max Gunslinging Chain 1 | . . 1 1 . . . Shots Hit Robots 683 | 50 105 135 217 77 90 9 Core Hits 287 | 22 37 54 87 52 33 2 Critical Kills . | . . . . . . . Critical Parts Destroyed . | . . . . . . . Critical Strikes 22 | . . 5 12 3 1 1 Burn 12 | . . 5 7 . . . Blast 4 | . . . 2 2 . . Sever 6 | . . . 3 1 1 1 Melee Attacks 106 | . 1 . 21 36 37 11 Impact . | . . . . . . . Slashing 105 | . . . 21 36 37 11 Piercing . | . . . . . . . Sneak Attacks 7 | . 1 . 2 4 . . Combat Hostiles . | . . . . . . . Follow-up Attacks . | . . . . . . . Damage Inflicted 12977 | 497 989 1968 4594 2049 2603 277 Guns 6873 | 497 988 1962 2799 627 . . Cannons 1607 | . . . 570 681 356 . Explosions 1135 | . . . 777 358 . . Melee 3300 | . . . 400 380 2243 277 Ramming 14 | . 1 6 . 3 4 . Kinetic 5161 | 217 358 1041 2090 1099 356 . Thermal 3341 | 280 566 921 1365 209 . . Explosive 890 | . . . 532 358 . . Electromagnetic 271 | . 64 . 207 . . . Impact . | . . . . . . . Slashing 3300 | . . . 400 380 2243 277 Piercing . | . . . . . . . Highest Corruption 3 | . . . . 2 3 . Average Corruption 2 | . . . . 2 2 . Corruption Purged . | . . . . . . . Corruption Blocked . | . . . . . . . Effects 47 | . . . . 24 23 . Message Errors 16 | . . . . 10 6 . Matter Fused 6 | . . . . 3 3 . Heat Flow Errors 7 | . . . . 1 6 . Energy Discharges 7 | . . . . 3 4 . Parts Rejected 2 | . . . . 2 . . Data Loss (minor) 4 | . . . . 3 1 . Data Loss (major) 2 | . . . . 1 1 . Misfires 2 | . . . . 1 1 . Alerts 1 | . . . . . 1 . Overload Shots . | . . . . . . . Overflow Damage 635 | . . . 93 45 444 53 Projectiles 9 | . . . . 9 . . Explosions 70 | . . . 37 33 . . Melee 556 | . . . 56 3 444 53 Knockbacks 25 | . 1 . 3 14 7 . Impact 1 | . 1 . . . . . Kinetic 22 | . . . 3 13 6 . Secondary 2 | . . . . 1 1 . Self-Inflicted Damage 30 | . . 3 . 25 2 . Shots 1 | . . . . 1 . . Rammed 4 | . 1 1 . 1 1 . Targets Rammed 4 | . 1 1 . 1 1 . Kicked . | . . . . . . . Crushed . | . . . . . . . Highest Temperature 336 | 40 217 175 336 159 232 . Average Temperature 44 | 21 63 22 48 48 89 . Received Heat Transfer 1823 | . 357 183 828 423 14 18 Effects 2 | . . . 2 . . . Energy Bleed 2 | . . . 2 . . . Siege Activations . | . . . . . . . Martial Activations . | . . . . . . . Shielding Activations . | . . . . . . . Robots Disrupted . | . . . . . . . Combat Hostiles . | . . . . . . . Robots Corrupted . | . . . . . . . Combat Hostiles . | . . . . . . . Parts Fried . | . . . . . . . Impact Corruptions . | . . . . . . . Robots Melted . | . . . . . . . Combat Hostiles . | . . . . . . . Parts Melted 14 | 1 . 6 5 2 . . Heat Transferred 8005 | 625 1300 2524 3149 407 . . Parts Sabotaged . | . . . . . . . Parts Stolen . | . . . . . . . Parts Stripped . | . . . . . . . Power Chain Reactions 2 | . . . 2 . . . Alert | -11 -10 -9 -8 -8 -8 -8 ------- Run | Yrd Mat Mat Mat Sto Rec Scr Maximum Alert Level 1 | . . . 1 1 . . Low Security (%) 97 | 100 100 100 99 72 100 . Level 1 2 | . . . . 27 . . Level 2 . | . . . . . . . Level 3 . | . . . . . . . Level 4 . | . . . . . . . Level 5 . | . . . . . . . High Security . | . . . . . . . Max Security . | . . . . . . . Peak Influence 280 | 10 73 189 201 280 183 . Initial 54 | . . 10 . 54 6 . Average 26 | . 20 66 47 119 53 . Influence Increases 4702 | 70 456 903 1556 1042 675 . Destroy 0b10 Robot/C 2080 | . 240 340 720 540 240 . Destroy 0b10 Robot/NC 495 | 70 15 110 100 40 160 . Destroy Leader 540 | . 66 142 206 126 . . Allied During Kill 198 | . . . . 59 139 . Successful Hack 202 | . 29 37 52 43 41 . Select Force Hacks 330 | . 60 60 60 60 90 . Disable Machine 135 | . . 9 45 81 . . Destroy Structure 167 | . 1 10 88 63 5 . Partial Spotted 60 | . 15 30 15 . . . Lose Combat Pursuer 495 | . 30 165 270 30 . . Influence Decreases 4702 | 70 425 934 1405 1172 677 19 Entered New Map 152 | . . 21 . 97 15 19 Time Decay 4364 | 70 415 893 1339 1005 642 . Lost Part 60 | . 10 20 20 10 . . Lost Ally 90 | . . . 10 60 20 . Purge Threat 36 | . . . 36 . . . Squads Dispatched 21 | . 4 4 8 5 . . Investigation 15 | . 4 3 5 3 . . Extermination . | . . . . . . . Reinforcement 3 | . . 1 . 2 . . Assault . | . . . . . . . Garrison 3 | . . . 3 . . . Intercept . | . . . . . . . Searches Triggered . | . . . . . . . Construction Impeded 1 | . . . . 1 . . Haulers Reinforced . | . . . . . . . Active Scanning Responses . | . . . . . . . Cargo Convoy Interrupts . | . . . . . . . Stealth | -11 -10 -9 -8 -8 -8 -8 --------- Run | Yrd Mat Mat Mat Sto Rec Scr Distress Signals 23 | . 5 8 5 5 . . Communications Jammed . | . . . . . . . Distress Signals . | . . . . . . . Times Spotted 185 | . 23 37 67 31 9 18 Peak Tracking Total 25 | . 4 6 4 6 3 25 Tactical Retreats 22 | . 2 8 11 1 . . Traps | -11 -10 -9 -8 -8 -8 -8 ------- Run | Yrd Mat Mat Mat Sto Rec Scr Traps Triggered 5 | . 1 . 2 2 . . Indirectly . | . . . . . . . Trap Hack Attempts . | . . . . . . . Triggered . | . . . . . . . Disarmed 6 | . . . 6 . . . Reprogrammed . | . . . . . . . Reused . | . . . . . . . Traps Extracted . | . . . . . . . Installed . | . . . . . . . Triggered . | . . . . . . . Objects Rigged 1 | . . . 1 . . . Exploded 1 | . . . 1 . . . Machines | -11 -10 -9 -8 -8 -8 -8 ---------- Run | Yrd Mat Mat Mat Sto Rec Scr Machines Disabled 17 | . . 1 5 9 . 2 Max in Single Turn 2 | . . 1 2 1 . . Machines Repaired . | . . . . . . . Machines Dismantled 1 | . . . . 1 . . Machines Sabotaged . | . . . . . . . Overloaded Fab Kills . | . . . . . . . Hacking | -11 -10 -9 -8 -8 -8 -8 --------- Run | Yrd Mat Mat Mat Sto Rec Scr Machines Accessed 72 | . 9 16 18 15 10 4 Terminals 46 | . 7 10 12 11 6 . Fabricators . | . . . . . . . Repair Stations 6 | . . 2 2 2 . . Recycling Units 11 | . 2 2 2 2 3 . Scanalyzers 4 | . . 2 2 . . . Garrison Access . | . . . . . . . Total Hacks 241 | . 38 45 62 35 24 37 Successful 169 | . 21 31 38 23 19 37 Failed 71 | . 17 14 23 12 5 . Catastrophic 9 | . 2 2 3 2 . . Database Lockouts 1 | . . . 1 . . . Manual 132 | . 27 27 40 17 21 . Terminals 158 | . 35 32 44 27 20 . Fabricators . | . . . . . . . Repair Stations 18 | . . 5 7 6 . . Recycling Units 12 | . 3 2 2 2 3 . Scanalyzers 15 | . . 6 9 . . . Garrison Access . | . . . . . . . Terminal Hacks 83 | . 11 9 8 8 10 37 Record 35 | . . . 1 1 . 33 Part Schematic 4 | . . . . . 4 . Robot Analysis 5 | . 1 . . . . 4 Prototype ID Bank 2 | . 1 1 . . . . Open Door 4 | . . . . 4 . . Level Access Points 3 | . 1 1 . . 1 . Branch Access Points 4 | . 1 1 . 1 1 . Emergency Access Points 1 | . 1 . . . . . Terminal Index 3 | . 1 1 1 . . . Recycling Unit Index 5 | . 1 2 1 . 1 . Garrison Index 1 | . . . 1 . . . Alert Level 1 | . . . . . 1 . Unreport Threat 1 | . . . 1 . . . Locate Traps 3 | . . . 2 1 . . Disarm Traps 1 | . . . 1 . . . Dispatch Records 1 | . . 1 . . . . Maintenance Status 1 | . . 1 . . . . Patrol Status 1 | . 1 . . . . . Hauler Manifests 2 | . 1 1 . . . . Registered Prototypes 1 | . . . . . 1 . Zone Layout 3 | . 2 . . 1 . . Release Object 1 | . . . . . 1 . Fabricator Hacks . | . . . . . . . Repair Station Hacks 17 | . . 5 6 6 . . Scan Component 9 | . . 3 3 3 . . Repair 8 | . . 2 3 3 . . Recycling Unit Hacks 1 | . 1 . . . . . Retrieve Components 1 | . 1 . . . . . Scanalyzer 12 | . . 6 6 . . . Insert Component 4 | . . 2 2 . . . Analyze 4 | . . 2 2 . . . Retrieve Study 4 | . . 2 2 . . . Garrison Access Hacks . | . . . . . . . Unauthorized Hacks 55 | . 9 11 17 9 9 . Terminals 44 | . 7 9 15 7 6 . Assimilate 2 | . . . 2 . . . Botnet 41 | . 7 9 12 7 6 . Detonate 1 | . . . 1 . . . Fabricators . | . . . . . . . Repair Stations . | . . . . . . . Recycling Units 11 | . 2 2 2 2 3 . Tunnel 11 | . 2 2 2 2 3 . Scanalyzers . | . . . . . . . Garrison Access . | . . . . . . . Data Cores Recovered . | . . . . . . . Used . | . . . . . . . Hacking Detections 51 | . 7 14 15 10 5 . Full Trace Events 11 | . 2 2 3 1 3 . Feedback Events 1 | . . . . . 1 . Corruption 1 | . . . . . 1 . Feedback Blocked . | . . . . . . . Robot Schematics Acquired . | . . . . . . . Robots Built . | . . . . . . . Authchips . | . . . . . . . Time . | . . . . . . . Total Robot Build Rating . | . . . . . . . Part Schematics Acquired 8 | . . 2 2 . 4 . Parts Built . | . . . . . . . Authchips . | . . . . . . . Time . | . . . . . . . Total Part Build Rating . | . . . . . . . Part Studies Acquired 4 | . . 2 2 . . . Parts Repaired 8 | . . 2 3 3 . . Time 276 | . . 64 92 120 . . Parts Recycled . | . . . . . . . Recycled Matter . | . . . . . . . Retrieved Matter . | . . . . . . . Retrieved Components 3 | . 3 . . . . . Parts Scanalyzed 4 | . . 2 2 . . . Part Schematics Acquired 4 | . . 2 2 . . . Parts Damaged . | . . . . . . . Bothacking | -11 -10 -9 -8 -8 -8 -8 ------------ Run | Yrd Mat Mat Mat Sto Rec Scr Used RIF Installer . | . . . . . . . Robots Hacked 1 | . 1 . . . . . Non-combat 1 | . 1 . . . . . Combat . | . . . . . . . Robot Hacks Applied 1 | . 1 . . . . . no_distress 1 | . 1 . . . . . Relay Couplers Released . | . . . . . . . Fabnet Peak Effective % . | . . . . . . . Robots Rewired 34 | . . . . . 34 . Allies Hacked . | . . . . . . . Hacks Repelled . | . . . . . . . Allies | -11 -10 -9 -8 -8 -8 -8 -------- Run | Yrd Mat Mat Mat Sto Rec Scr Total Allies 45 | . . . 1 10 34 . Largest Group 34 | . . . 1 10 34 29 Highest-Rated Group 545 | . . . 10 173 545 481 Highest-Rated Ally 34 | . . . 10 29 34 34 Total Orders . | . . . . . . . Ally Attacks 142 | . . . . 45 36 61 Total Damage 2982 | . . . . 556 1119 1307 Kills 31 | . . . . 6 16 9 Allies Corrupted . | . . . . . . . Allies Melted . | . . . . . . . Intel | -11 -10 -9 -8 -8 -8 -8 ------- Run | Yrd Mat Mat Mat Sto Rec Scr Active Infowar (turns) 22936 | 9571 769 2204 3837 1947 1476 3132 Sensors 9871 | . . 2204 3786 1769 1476 636 Terrain 4556 | . . . 1894 166 . 2496 Traps 12 | . . . . 12 . . Seismic 10006 | 9571 435 . . . . . T.N.C. 334 | . 334 . . . . . Robot Analysis Total 5 | . 1 . . . . 4 Derelict Logs Recovered . | . . . . . . . Drone Launches . | . . . . . . . Drone Recoveries . | . . . . . . . Exploration | -11 -10 -9 -8 -8 -8 -8 ------------- Run | Yrd Mat Mat Mat Sto Rec Scr Turns Passed 29407 | 15111 1071 2318 4219 2080 1476 3132 Spaces Moved 8895 | 371 742 1748 2198 1079 929 1828 Core 1 | 1 . . . . . . Treads 138 | 98 40 . . . . . Legs . | . . . . . . . Wheels 8756 | 272 702 1748 2198 1079 929 1828 Hover . | . . . . . . . Flight . | . . . . . . . Fastest Speed 50 | 50 90 86 90 95 95 95 Average Speed 95 | 108 100 91 95 95 95 97 Slowest Speed 160 | 160 160 96 110 110 95 110 Overloaded Moves . | . . . . . . . Propulsion Burnouts . | . . . . . . . Robots Hopped . | . . . . . . . Potential Cave-ins . | . . . . . . . Cave-ins Triggered . | . . . . . . . Exploration Rate (%) 79 | 4 96 97 92 83 97 88 Regions Visited 6 Branch Regions 3 Pre-discovered Areas 16 | . 2 2 2 2 3 5 Known Exits Taken 5 | . 1 1 1 1 1 . Unknown Exits Taken 1 | 1 . . . . . . Scrap Searched 4 | . . . . . . 4 Spaces Dug 39 | . 1 8 18 10 . 2 Terrain Destroyed 174 | . 1 8 95 68 . 2 Melee 22 | . . . 10 10 . 2 Projectile 22 | . 1 8 10 3 . . AOE 130 | . . . 75 55 . . Terrain Rammed . | . . . . . . . Walls Destroyed . | . . . . . . . Machines Disabled . | . . . . . . . Actions | -11 -10 -9 -8 -8 -8 -8 --------- Run | Yrd Mat Mat Mat Sto Rec Scr Total 28767 | 15003 950 2268 3987 1969 1427 3163 Wait 18805 | 14550 72 350 1507 741 276 1309 Move 8889 | 370 741 1747 2197 1078 928 1828 Hop . | . . . . . . . Pick Up 68 | 11 18 15 13 9 . 2 Fast Attach 26 | 9 3 3 6 2 . 3 Attach 15 | . 2 3 4 6 . . Detach 2 | . 2 . . . . . Swap 170 | 15 30 23 56 33 9 4 Drop 85 | 9 15 23 25 8 . 5 Fire 467 | 39 65 103 158 47 55 . Melee 106 | . 1 . 21 36 37 11 Ram 4 | . 1 1 . 1 1 . Kick . | . . . . . . . Crush . | . . . . . . . Escape Stasis . | . . . . . . . Rewire 120 | . . . . . 120 . Trap . | . . . . . . . Miscellaneous 10 | . . . . 8 1 1 Route ------- -11/Scrapyard -10/Materials (discovered 5 exits: *Mat x3 / *Min / [*Sub]) -9/Materials (discovered 4 exits: *Mat x3 / *Min) -8/Materials (discovered 5 exits: *Fac x3 / *Sto x2) -8/Storage (discovered 2 exits: *Fac / *Rec) -8/Recycling (discovered 2 exits: *Fac / *Scr) -8/Scraptown (discovered 2 exits: *Fac x2) History --------- Turn | Location | Event 13 | -11/Scrapyard | Discovered new exit (range 15) 15112 | -11/Scrapyard | Entered Materials 15113 | -10/Materials | Build established: Mutant 15295 | -10/Materials | Discovered new exit (range 7) 15370 | -10/Materials | Identified exit to Mines 15370 | -10/Materials | Identified exit to Materials 15815 | -10/Materials | Core integrity fell below 50% 16074 | -10/Materials | Discovered new exit (range 10) 16133 | -10/Materials | Core integrity fell below 20% 16183 | -10/Materials | Entered another Materials area 16183 | -9/Materials | Evolved 2 slots: Propulsion x1, Utility x1 16269 | -9/Materials | Identified exit to Mines 16880 | -9/Materials | Discovered new exit (range 5) 16927 | -9/Materials | Identified exit to Materials 17432 | -9/Materials | Discovered exit to Materials (range 16) 18039 | -9/Materials | Repaired Ion Engine+ 18163 | -9/Materials | Discovered exit to Materials (range 15) 18433 | -9/Materials | Repaired Imp. Sensor Array 18501 | -9/Materials | Entered another Materials area 18501 | -8/Materials | Evolved 2 slots: Utility x2 18815 | -8/Materials | Build established: Skirmisher 19210 | -8/Materials | Discovered new exit (range 11) 19220 | -8/Materials | Central database locked down 19743 | -8/Materials | Discovered new exit (range 14) 19763 | -8/Materials | Identified exit to Storage 20512 | -8/Materials | Garrison activated, responded to threat 20580 | -8/Materials | Discovered new exit (range 15) 20658 | -8/Materials | Build established: Mutant 21349 | -8/Materials | Discovered new exit (range 16) 22110 | -8/Materials | Repaired Imp. Terrain Scanner 22149 | -8/Materials | Repaired Imp. Sensor Array 22524 | -8/Materials | Core integrity fell below 50% 22606 | -8/Materials | Discovered new exit (range 8) 22613 | -8/Materials | Identified exit to Factory 22700 | -8/Materials | Repaired Arm. Wheel 22720 | -8/Materials | Entered Storage 22934 | -8/Storage | Identified exit to Recycling 23045 | -8/Storage | Destroyed 7 combat bots 23518 | -8/Storage | Repaired Arm. Huge Wheel 23565 | -8/Storage | Repaired Arm. Huge Wheel 23569 | -8/Storage | Discovered exit to Factory (range 15) 23787 | -8/Storage | Assisted by bots powering up and referring to "LRC-V3" 24083 | -8/Storage | Build established: Commander-Mutant 24251 | -8/Storage | Core integrity fell below 20% 24514 | -8/Storage | Repaired Arm. Wheel 24632 | -8/Storage | Used back door to open Recycling access 24800 | -8/Storage | Entered Recycling 24800 | -8/Recycling | Accompanied by 4 allies 25103 | -8/Recycling | Identified exit to Factory 25644 | -8/Recycling | Watched by a mysterious "MATRIX" hacker 26057 | -8/Recycling | Scanned before Scraplab entrance 26071 | -8/Recycling | Entered Scraplab 26092 | -8/Recycling | Discovered new exit (range 3) 26093 | -8/Recycling | Identified exit to Scraptown 26276 | -8/Recycling | Entered Scraptown 26276 | -8/Scraptown | Accompanied by 29 allies 26276 | -8/Scraptown | System corruption cleaned by C-Scrubber 26503 | -8/Scraptown | Discovered exit to Factory (range 3) 26562 | -8/Scraptown | Heard Great Nut preacher, LISTEN AND RECITE! 26574 | -8/Scraptown | Visited Shadow of the Wyrm 26581 | -8/Scraptown | Visited Red Mages 26732 | -8/Scraptown | Visited Cave Peace 26763 | -8/Scraptown | Visited Assassins FH 26796 | -8/Scraptown | Visited SPCMW 26807 | -8/Scraptown | Visited UFD Registry 26807 | -8/Scraptown | Registered with UFD as "Ioncase" 26843 | -8/Scraptown | Visited LU-1G1's Boring Crew 26899 | -8/Scraptown | Visited Abandonware Association 26912 | -8/Scraptown | Learned abandonware demo "MELTYB.EXE" 26912 | -8/Scraptown | Learned abandonware demo "KABOOM.EXE" 27877 | -8/Scraptown | Visited Junk Repository 28050 | -8/Scraptown | Visited A0-MCA Data Center 28055 | -8/Scraptown | Given an A- rating by A0-MCA 28060 | -8/Scraptown | Found A0-MCA's Component Scanner 28082 | -8/Scraptown | Visited Chapter 10 28125 | -8/Scraptown | Visited Derelict Rescue Squad 28152 | -8/Scraptown | Visited Analyses Database 28173 | -8/Scraptown | Visited Junk Cannon Lab 28180 | -8/Scraptown | Found Prototype Special Weapon 28180 | -8/Scraptown | Identified Junk Cannon 29047 | -8/Scraptown | Visited Cartography Club 29062 | -8/Scraptown | Discovered exit to Factory (range 14) 29360 | -8/Scraptown | Attacked by Scraptown defenders 29369 | -8/Scraptown | Learned location of Zion (-7) 29369 | -8/Scraptown | Learned location of Warlord (-5) 29369 | -8/Scraptown | Learned location of Testing (-3) 29369 | -8/Scraptown | Learned 16 Factory zone layouts 29369 | -8/Scraptown | Learned 20 Factory zone layouts 29369 | -8/Scraptown | Learned 8 Research zone layouts 29369 | -8/Scraptown | Learned 16 Research zone layouts 29369 | -8/Scraptown | Learned 4 Recycling zone layouts 29369 | -8/Scraptown | Learned 8 Lower Caves zone layouts 29369 | -8/Scraptown | Learned 20 Proximity Caves zone layouts 29369 | -8/Scraptown | Learned 4 Armory zone layouts 29369 | -8/Scraptown | Learned Research emergency access door positions 29369 | -8/Scraptown | Learned location of 1 exit from Research 29369 | -8/Scraptown | Learned location of 2 exits from Lower Caves 29369 | -8/Scraptown | Learned location of 3 exits from Upper Caves 29408 | -8/Scraptown | Destroyed by DR-K2N(E) with Overtuned Barrage Gun Last Messages --------------- 29396_ Penetrated by Bolt. 29397_ Destroyed Ripteeth. 29397_ Slug penetrates 34-UPL(r). 29397_ 34-UPL(r) destroyed. 29399_ Penetrated by Bolt. 29399_ Penetrated by HV Slug. 29400_ Destroyed Lgt. Deuterium Engine. 29400_ Destroyed EM Pulse Gun. 29400_ Slug penetrates Wall. 29401_ Penetrated by Bolt. 29403_ Penetrated by HV Slug. 29403_ HV Slug penetrates Wall. 29403_ L5-ILC(p) destroyed. 29404_ Wall collapses. 29404_ Penetrated by Bolt. 29405_ JM-0K8(h) destroyed. 29406_ Penetrated by HV Slug. 29406_ HV Slug penetrates Wall. 29407_ Commando 3a destroyed. [Achievement: I Think I Know What's Going On] Map ----- +----------------------------------------------------+ | #?#####?###??#############?##?######?????#???????? | | ?###??##???########?##???#?#????###?#?????#??????? | | ?############?####?###?#?##???##?#???????????????? | | #?#?########?#??#?#####?#####??###?????#?????????? | | ???##?###??###?#?#######?###########???#?????????? | | ##????###########??#?#############??#?##?????????? | | ?#??###?###############################?#?#??????? | | ?#?#########?##############"""###########???#????? | | ###############?###########" "############???????? | | """##""|##"""##### ####### < ############???????? | | "" ##""|##!!"#### ###### ############??#????? | | ############?#?#??? | | #############?#???? | | ################# #########################?#?? | | ################## ############################?? | | ################## # # # # ##############???? | | ################## # ## # # ###################?? | | """""##""""""""""# # ##### ##############??? | | """""#### " # # # " # #######?####?###? | | """""### ""# ## ## ## #=##############??? | | """""### ""# ## # #"# =%###############?? | | """### """"# # #X####!#############???? | | """### " ""# ## # ####/##j#############?#?? | | ! """### """"# # #= #[!%!j=#########?####??? | | """"### ""# ####=##=!###################?? | | """#### "# #!*E%@%%[*** ##############??? | | "## # #E=Ehh[==![[ ###############?? | | ########### ##### ##=%#####!##########?######??? | | ########### ##### %=/j# #####################?#?? | | """"""""""" """""=!j*!"## """"""""#########???? | | ![t%!* "## " " " "#######?##??? | | [t*! "## % ""#######?????? | | = "## & "######?#????? | | " # &"########????? | | "###?#???????? | | """""""""""""""""" "## " " " "###?#???#???? | | """""""""""""""""" "## """"""""##???#??????? | | ################"" "################?#?#?????? | | ###########"" "###############????##????? | | ?X?##########"" "## """"######??#????????? | | "" ??######?####"" "## " "#######?#?#?#????? | | "" X?#?#?######"" "## X"###########??????? | | " ?######## #"" "## "#####?###????????? | | ? ""##########???????? | | ? "## " "#######?#??#?????? | | " ######### #"" "## """"########?#?##????? | | "??""?#########"" "## """"########?#?#?????? | | "" ?####?######"" "###################??????? | | ?X"??########"" "## """"""""####??##????? | | ? ???########"" "## " """"""#####??#????? | +----------------------------------------------------+ Best States ------------- Heat Dissipation 31 Energy Generation 14 Energy Capacity 280 Matter Stores 300 Matter Capacity 300 Sight Range 16 Robot Scan Range 15 Terrain Scan Range 16 Terrain Scan Density 210 Armor Coverage 225 Resistance: KI 20 Resistance: TH 20 Resistance: EX 20 Resistance: EM 20 Resistance: I 20 Resistance: S 20 Resistance: P 20 Evasion (%) 44 Targeting Accuracy 8 Recoil Reduction 2 Offensive Hacking 10 Item Schematics ----------------- Lgt. Armor Plating | -9/Materials | Scanalyzed ECM Suite | -9/Materials | Scanalyzed Assault Cannon | -8/Materials | Scanalyzed Hrd. Medium Armor Plating | -8/Materials | Scanalyzed Arm. Huge Wheel | -8/Recycling | Hacked Arm. Wheel | -8/Recycling | Hacked Terrain Scan Processor | -8/Recycling | Hacked Med. Armor Plating | -8/Recycling | Hacked Robot Schematics ------------------ None Fabricated ------------ Nothing Repaired ---------- Ion Engine | 46% | -9/Materials Imp. Sensor Array | 40% | -9/Materials Imp. Terrain Scanner | 4% | -8/Materials Imp. Sensor Array | 59% | -8/Materials Arm. Wheel | 18% | -8/Materials Arm. Huge Wheel | 36% | -8/Storage Arm. Huge Wheel | 69% | -8/Storage Arm. Wheel | 38% | -8/Storage Studied --------- Hvy. Assault Rifle | -9/Materials | Hacked Ion Engine | -9/Materials | Hacked Assault Cannon | -8/Materials | Hacked Hvy. EM Pulse Gun | -8/Materials | Hacked Alien Tech Used ----------------- None Achievements -------------- I Think I Know What's Going On Challenges ------------ None Game ------ Seed SystemBiocellSaw Manual? 0 Play Time 02:24:57 Cumulative 121.2 hours Start 2026.09.18 @ 05:12:12 End 2026.09.18 @ 07:37:49 Sessions 1 Manual Loads 0 Difficulty Adventurer Special Mode None Game No. 58 Rogue 0 Adventurer 58 Explorer 0 Win Type - Total 1 Types 1/0/0/0/0/0/0/0/0/0 Lore% 50 Gallery% 42 Achievement% 39 Wizard Run 0 Options --------- Layout 2 ASCII 0 Keyboard 0 Movement Arrows Keybinds 0 Fullscreen 1 Font 16/Terminus Map View 55x47 Zoom Use 4% Tactical HUD 1 Map Filters NONE Filters NONE Steam 1 RUN: 7eadb44b-5bd2-446c-bbf7-637469055c30